[Event "Titled Tuesday Blitz April 4 Early 2023"]
[White "Vakhidov, Shahzod"]
[Black "Levitskiy, Andrey"]
[WhiteFideId "14205270"]
[BlackFideId "14132885"]
[WhiteElo "2212"]
[BlackElo "2341"]
[Result "0-1"]
[Round "04"]
[TimeControl "180+2"]
[Date "2023.04.04"]
[WhiteClock "0:00:01"]
[BlackClock "0:00:04"]

1. d4 {[%clk 0:01:55]}  Nf6 {[%clk 0:02:59]} 2. Nf3 {[%clk 0:01:55]}  d5 {[%clk 0:02:59]} 3. g3 {[%clk 0:01:55]}  b5 {[%clk 0:02:58]} 4. Bg2 {[%clk 0:01:56]}  e6 {[%clk 0:02:59]} 5. O-O {[%clk 0:01:56]}  Bb7 {[%clk 0:02:59]} 6. a4 {[%clk 0:01:57]}  c6 {[%clk 0:02:59]} 7. Ne5 {[%clk 0:01:55]}  Nbd7 {[%clk 0:02:54]} 8. c3 {[%clk 0:01:44]}  a6 {[%clk 0:02:51]} 9. axb5 {[%clk 0:01:41]}  cxb5 {[%clk 0:02:47]} 10. Bf4 {[%clk 0:01:39]}  Nxe5 {[%clk 0:02:41]} 11. dxe5 {[%clk 0:01:35]}  Nd7 {[%clk 0:02:37]} 12. h4 {[%clk 0:01:28]}  Bc5 {[%clk 0:02:25]} 13. Nd2 {[%clk 0:01:26]}  Bb6 {[%clk 0:02:11]} 14. e4 {[%clk 0:01:26]}  Nc5 {[%clk 0:01:57]} 15. Qe2 {[%clk 0:01:15]}  d4 {[%clk 0:01:42]} 16. cxd4 {[%clk 0:01:14]}  Qxd4 {[%clk 0:01:42]} 17. Rfd1 {[%clk 0:01:08]}  Qb4 {[%clk 0:01:42]} 18. Be3 {[%clk 0:01:05]}  O-O {[%clk 0:01:33]} 19. Qg4 {[%clk 0:01:00]}  Rfc8 {[%clk 0:01:14]} 20. h5 {[%clk 0:00:55]}  Bc7 {[%clk 0:00:55]} 21. Nf3 {[%clk 0:00:51]}  Nxe4 {[%clk 0:00:47]} 22. h6 {[%clk 0:00:48]}  g6 {[%clk 0:00:46]} 23. Rd4 {[%clk 0:00:44]}  Qxb2 {[%clk 0:00:45]} 24. Rf1 {[%clk 0:00:40]}  Nc3 {[%clk 0:00:38]} 25. Rd2 {[%clk 0:00:37]}  Qa3 {[%clk 0:00:31]} 26. Rd7 {[%clk 0:00:26]}  Ne2+ {[%clk 0:00:21]} 27. Kh2 {[%clk 0:00:24]}  Qf8 {[%clk 0:00:17]} 28. Re1 {[%clk 0:00:24]}  Nc3 {[%clk 0:00:16]} 29. Rc1 {[%clk 0:00:20]}  Nd5 {[%clk 0:00:13]} 30. Bg5 {[%clk 0:00:15]}  b4 {[%clk 0:00:07]} 31. Bf6 {[%clk 0:00:09]}  Nxf6 {[%clk 0:00:06]} 32. exf6 {[%clk 0:00:10]}  Bd5 {[%clk 0:00:04]} 33. Rcxc7 {[%clk 0:00:09]}  Rxc7 {[%clk 0:00:05]} 34. Rxc7 {[%clk 0:00:10]}  b3 {[%clk 0:00:05]} 35. Ne5 {[%clk 0:00:10]}  b2 {[%clk 0:00:05]} 36. Bxd5 {[%clk 0:00:04]}  exd5 {[%clk 0:00:04]} 37. Rb7 {[%clk 0:00:04]}  Rb8 {[%clk 0:00:04]} 38. Rxb8 {[%clk 0:00:01]}  Qxb8 {[%clk 0:00:05]} 39. Nc6 {[%clk 0:00:02]}  b1=Q {[%clk 0:00:04]} 40. Ne7+ {[%clk 0:00:02]}  Kh8 {[%clk 0:00:04]} 41. Qd7 {[%clk 0:00:03]}  Qf8 {[%clk 0:00:04]} 42. Qxd5 {[%clk 0:00:01]}  Qxh6+ {[%clk 0:00:04]} 43. Kg2 {[%clk 0:00:01]}  Qbh1# {[%clk 0:00:04]} 0-1


[Site "https://www.chess.com"]

[Event "Titled Tuesday Blitz April 4 Early 2023"]
[White "Kowalczyk, Pawel"]
[Black "Eynullayev, Atilla"]
[WhiteFideId "1130641"]
[BlackFideId "13413570"]
[WhiteElo "2324"]
[BlackElo "2181"]
[Result "0-1"]
[Round "04"]
[TimeControl "180+2"]
[Date "2023.04.04"]
[WhiteClock "0:00:32"]
[BlackClock "0:00:07"]

1. b4 {[%clk 0:03:00]}  Nf6 {[%clk 0:02:59]} 2. Bb2 {[%clk 0:02:58]}  g6 {[%clk 0:02:59]} 3. Nf3 {[%clk 0:02:58]}  Bg7 {[%clk 0:02:59]} 4. g3 {[%clk 0:02:58]}  O-O {[%clk 0:02:59]} 5. Bg2 {[%clk 0:02:58]}  d5 {[%clk 0:02:52]} 6. O-O {[%clk 0:02:56]}  a5 {[%clk 0:02:52]} 7. b5 {[%clk 0:02:54]}  c5 {[%clk 0:02:53]} 8. e3 {[%clk 0:02:46]}  a4 {[%clk 0:02:38]} 9. c4 {[%clk 0:02:43]}  dxc4 {[%clk 0:02:31]} 10. Na3 {[%clk 0:02:41]}  Be6 {[%clk 0:02:12]} 11. Qc2 {[%clk 0:02:41]}  Qd3 {[%clk 0:01:37]} 12. Ne5 {[%clk 0:02:41]}  Qxc2 {[%clk 0:01:36]} 13. Nxc2 {[%clk 0:02:41]}  Ng4 {[%clk 0:01:33]} 14. f4 {[%clk 0:02:41]}  Nxe5 {[%clk 0:01:21]} 15. fxe5 {[%clk 0:02:42]}  Ra7 {[%clk 0:01:18]} 16. b6 {[%clk 0:02:20]}  Ra6 {[%clk 0:01:18]} 17. Ba3 {[%clk 0:02:17]}  Nd7 {[%clk 0:00:51]} 18. Rab1 {[%clk 0:02:13]}  Rb8 {[%clk 0:00:46]} 19. Rb5 {[%clk 0:02:06]}  Bxe5 {[%clk 0:00:45]} 20. Rfb1 {[%clk 0:02:02]}  Bd6 {[%clk 0:00:44]} 21. Bf1 {[%clk 0:01:49]}  Bd5 {[%clk 0:00:38]} 22. Kf2 {[%clk 0:01:43]}  Bc6 {[%clk 0:00:35]} 23. R5b2 {[%clk 0:01:41]}  Bd5 {[%clk 0:00:34]} 24. Rb5 {[%clk 0:01:39]}  Rba8 {[%clk 0:00:21]} 25. Ne1 {[%clk 0:01:37]}  Ra5 {[%clk 0:00:21]} 26. R5b2 {[%clk 0:01:36]}  Be5 {[%clk 0:00:20]} 27. Rb5 {[%clk 0:01:34]}  Rxb5 {[%clk 0:00:20]} 28. Rxb5 {[%clk 0:01:35]}  Bc6 {[%clk 0:00:19]} 29. Rb1 {[%clk 0:01:34]}  Bd5 {[%clk 0:00:20]} 30. Nf3 {[%clk 0:01:33]}  Bd6 {[%clk 0:00:20]} 31. Ng5 {[%clk 0:01:32]}  Ra6 {[%clk 0:00:20]} 32. e4 {[%clk 0:01:32]}  Bc6 {[%clk 0:00:21]} 33. Bxc4 {[%clk 0:01:31]}  Rxb6 {[%clk 0:00:21]} 34. Rxb6 {[%clk 0:01:31]}  Nxb6 {[%clk 0:00:22]} 35. Bxf7+ {[%clk 0:01:31]}  Kg7 {[%clk 0:00:23]} 36. Bb2+ {[%clk 0:01:31]}  Kf8 {[%clk 0:00:21]} 37. Be6 {[%clk 0:01:29]}  Ke8 {[%clk 0:00:20]} 38. Nxh7 {[%clk 0:01:27]}  c4 {[%clk 0:00:17]} 39. Ng5 {[%clk 0:01:26]}  a3 {[%clk 0:00:17]} 40. Bd4 {[%clk 0:01:25]}  Na4 {[%clk 0:00:17]} 41. Bxc4 {[%clk 0:01:25]}  b5 {[%clk 0:00:15]} 42. Bf7+ {[%clk 0:01:24]}  Kd7 {[%clk 0:00:14]} 43. Bxg6 {[%clk 0:01:25]}  b4 {[%clk 0:00:10]} 44. Bf7 {[%clk 0:01:24]}  Bc5 {[%clk 0:00:08]} 45. Be6+ {[%clk 0:01:17]}  Kd6 {[%clk 0:00:07]} 46. e5+ {[%clk 0:01:16]}  Kc7 {[%clk 0:00:07]} 47. Ke3 {[%clk 0:01:15]}  Bxd4+ {[%clk 0:00:07]} 48. Kxd4 {[%clk 0:01:16]}  Kb6 {[%clk 0:00:08]} 49. h4 {[%clk 0:01:15]}  Nc5 {[%clk 0:00:08]} 50. Bf5 {[%clk 0:00:54]}  b3 {[%clk 0:00:08]} 51. Bb1 {[%clk 0:00:54]}  b2 {[%clk 0:00:05]} 52. h5 {[%clk 0:00:53]}  Ba4 {[%clk 0:00:02]} 53. h6 {[%clk 0:00:53]}  Nb3+ {[%clk 0:00:01]} 54. axb3 {[%clk 0:00:52]}  Bxb3 {[%clk 0:00:02]} 55. h7 {[%clk 0:00:49]}  a2 {[%clk 0:00:03]} 56. h8=Q {[%clk 0:00:49]}  axb1=Q {[%clk 0:00:03]} 57. Qb8+ {[%clk 0:00:49]}  Ka6 {[%clk 0:00:03]} 58. Qxb3 {[%clk 0:00:38]}  Qg1+ {[%clk 0:00:03]} 59. Ke4 {[%clk 0:00:36]}  b1=Q+ {[%clk 0:00:03]} 60. Qxb1 {[%clk 0:00:32]}  Qxb1+ {[%clk 0:00:04]} 61. d3 {[%clk 0:00:33]}  Qe1+ {[%clk 0:00:04]} 62. Kf5 {[%clk 0:00:33]}  Kb5 {[%clk 0:00:05]} 63. Ne4 {[%clk 0:00:33]}  Qe3 {[%clk 0:00:05]} 64. g4 {[%clk 0:00:32]}  Qxd3 {[%clk 0:00:05]} 65. g5 {[%clk 0:00:32]}  Kc6 {[%clk 0:00:06]} 66. g6 {[%clk 0:00:31]}  Kd5 {[%clk 0:00:06]} 67. g7 {[%clk 0:00:32]}  Qxe4+ {[%clk 0:00:07]} 68. Kg5 {[%clk 0:00:32]}  Qg2+ {[%clk 0:00:07]} 0-1


[Site "https://www.chess.com"]

[Event "Titled Tuesday Blitz April 4 Early 2023"]
[White "Mortazavi, Ali"]
[Black "Bashirli, Nail"]
[WhiteFideId "401323"]
[BlackFideId "13406809"]
[WhiteElo "2339"]
[BlackElo "2322"]
[Result "1-0"]
[Round "04"]
[TimeControl "180+2"]
[Date "2023.04.04"]
[WhiteClock "0:00:21"]
[BlackClock "0:00:06"]

1. Nf3 {[%clk 0:03:00]}  Nf6 {[%clk 0:02:51]} 2. g3 {[%clk 0:03:00]}  d5 {[%clk 0:02:51]} 3. Bg2 {[%clk 0:03:01]}  c6 {[%clk 0:02:49]} 4. O-O {[%clk 0:03:02]}  Bg4 {[%clk 0:02:49]} 5. d3 {[%clk 0:03:02]}  Nbd7 {[%clk 0:02:48]} 6. c4 {[%clk 0:03:03]}  e6 {[%clk 0:02:48]} 7. Be3 {[%clk 0:03:03]}  Be7 {[%clk 0:02:48]} 8. Qb3 {[%clk 0:03:04]}  b6 {[%clk 0:02:46]} 9. Nc3 {[%clk 0:02:46]}  O-O {[%clk 0:02:46]} 10. Qa4 {[%clk 0:02:33]}  Nc5 {[%clk 0:02:45]} 11. Bxc5 {[%clk 0:02:22]}  Bxc5 {[%clk 0:02:41]} 12. Ne5 {[%clk 0:02:12]}  Rc8 {[%clk 0:02:38]} 13. cxd5 {[%clk 0:02:10]}  b5 {[%clk 0:02:33]} 14. Qa6 {[%clk 0:01:44]}  b4 {[%clk 0:02:25]} 15. Na4 {[%clk 0:01:26]}  cxd5 {[%clk 0:02:17]} 16. Rac1 {[%clk 0:01:18]}  Bxe2 {[%clk 0:02:07]} 17. Nxc5 {[%clk 0:01:15]}  Bxf1 {[%clk 0:02:06]} 18. Bxf1 {[%clk 0:01:15]}  Qb6 {[%clk 0:01:54]} 19. d4 {[%clk 0:01:04]}  Rc7 {[%clk 0:01:31]} 20. Rd1 {[%clk 0:00:55]}  Rd8 {[%clk 0:01:08]} 21. Qe2 {[%clk 0:00:53]}  a5 {[%clk 0:01:04]} 22. b3 {[%clk 0:00:53]}  Qd6 {[%clk 0:00:37]} 23. h3 {[%clk 0:00:51]}  Qb6 {[%clk 0:00:34]} 24. Bg2 {[%clk 0:00:52]}  Qb8 {[%clk 0:00:32]} 25. Kh2 {[%clk 0:00:52]}  Ne8 {[%clk 0:00:32]} 26. Na6 {[%clk 0:00:50]}  Qb6 {[%clk 0:00:30]} 27. Nxc7 {[%clk 0:00:51]}  Nxc7 {[%clk 0:00:30]} 28. Bf1 {[%clk 0:00:47]}  Ne8 {[%clk 0:00:28]} 29. Qb5 {[%clk 0:00:45]}  Qd6 {[%clk 0:00:28]} 30. Rc1 {[%clk 0:00:43]}  g6 {[%clk 0:00:27]} 31. Qc5 {[%clk 0:00:41]}  Qb8 {[%clk 0:00:26]} 32. Qe7 {[%clk 0:00:37]}  Nd6 {[%clk 0:00:22]} 33. Rc7 {[%clk 0:00:36]}  Kg7 {[%clk 0:00:09]} 34. Nxf7 {[%clk 0:00:34]}  Nf5 {[%clk 0:00:09]} 35. Qc5 {[%clk 0:00:26]}  Rf8 {[%clk 0:00:07]} 36. Ne5+ {[%clk 0:00:22]}  Kh6 {[%clk 0:00:06]} 37. Ng4+ {[%clk 0:00:22]}  Kg5 {[%clk 0:00:06]} 38. Qc1+ {[%clk 0:00:22]}  Kh5 {[%clk 0:00:06]} 39. Rxh7+ {[%clk 0:00:21]} 1-0


[Site "https://www.chess.com"]

[Event "Titled Tuesday Blitz April 4 Early 2023"]
[White "Gurevich, Dmitry"]
[Black "Salemgareev, Tagir"]
[WhiteFideId "2000407"]
[BlackFideId "24199052"]
[WhiteElo "2506"]
[BlackElo "2360"]
[Result "1/2-1/2"]
[Round "04"]
[TimeControl "180+2"]
[Date "2023.04.04"]
[WhiteClock "0:00:03"]
[BlackClock "0:00:06"]

1. d4 {[%clk 0:02:49]}  Nf6 {[%clk 0:02:58]} 2. c4 {[%clk 0:02:49]}  e6 {[%clk 0:02:57]} 3. Nc3 {[%clk 0:02:48]}  Bb4 {[%clk 0:02:57]} 4. a3 {[%clk 0:02:48]}  Bxc3+ {[%clk 0:02:56]} 5. bxc3 {[%clk 0:02:49]}  c5 {[%clk 0:02:56]} 6. e3 {[%clk 0:02:47]}  Nc6 {[%clk 0:02:55]} 7. Bd3 {[%clk 0:02:47]}  O-O {[%clk 0:02:53]} 8. Ne2 {[%clk 0:02:46]}  b6 {[%clk 0:02:53]} 9. e4 {[%clk 0:02:45]}  Ne8 {[%clk 0:02:53]} 10. O-O {[%clk 0:02:38]}  Na5 {[%clk 0:02:52]} 11. Ng3 {[%clk 0:02:27]}  Ba6 {[%clk 0:02:51]} 12. e5 {[%clk 0:02:17]}  Bxc4 {[%clk 0:02:43]} 13. Bxc4 {[%clk 0:02:17]}  Nxc4 {[%clk 0:02:43]} 14. Qe2 {[%clk 0:02:13]}  d5 {[%clk 0:02:40]} 15. f4 {[%clk 0:02:10]}  cxd4 {[%clk 0:02:26]} 16. cxd4 {[%clk 0:02:09]}  f5 {[%clk 0:02:13]} 17. exf6 {[%clk 0:02:08]}  Nxf6 {[%clk 0:02:01]} 18. Qxe6+ {[%clk 0:02:06]}  Kh8 {[%clk 0:02:02]} 19. Qe2 {[%clk 0:01:56]}  Re8 {[%clk 0:01:56]} 20. Qd3 {[%clk 0:01:56]}  Ne4 {[%clk 0:01:55]} 21. f5 {[%clk 0:01:45]}  Rc8 {[%clk 0:01:45]} 22. Bf4 {[%clk 0:01:40]}  Nxg3 {[%clk 0:01:41]} 23. hxg3 {[%clk 0:01:34]}  Re4 {[%clk 0:01:39]} 24. Rae1 {[%clk 0:01:31]}  Qe7 {[%clk 0:01:34]} 25. Rxe4 {[%clk 0:01:26]}  dxe4 {[%clk 0:01:34]} 26. Qc3 {[%clk 0:01:16]}  Qxa3 {[%clk 0:01:28]} 27. Qxa3 {[%clk 0:01:12]}  Nxa3 {[%clk 0:01:28]} 28. d5 {[%clk 0:01:11]}  Rd8 {[%clk 0:00:18]} 29. Rc1 {[%clk 0:00:55]}  Kg8 {[%clk 0:00:16]} 30. d6 {[%clk 0:00:47]}  Nb5 {[%clk 0:00:15]} 31. Rd1 {[%clk 0:00:38]}  Nc3 {[%clk 0:00:14]} 32. Rd2 {[%clk 0:00:34]}  e3 {[%clk 0:00:13]} 33. Rd3 {[%clk 0:00:15]}  Ne2+ {[%clk 0:00:10]} 34. Kf1 {[%clk 0:00:14]}  Nxf4 {[%clk 0:00:11]} 35. gxf4 {[%clk 0:00:14]}  Kf7 {[%clk 0:00:11]} 36. g4 {[%clk 0:00:11]}  Ke8 {[%clk 0:00:10]} 37. Rxe3+ {[%clk 0:00:10]}  Kd7 {[%clk 0:00:08]} 38. Re7+ {[%clk 0:00:10]}  Kxd6 {[%clk 0:00:08]} 39. Rxa7 {[%clk 0:00:11]}  Rd7 {[%clk 0:00:07]} 40. Ra8 {[%clk 0:00:08]}  Kd5 {[%clk 0:00:07]} 41. Kf2 {[%clk 0:00:07]}  Ke4 {[%clk 0:00:07]} 42. Kg3 {[%clk 0:00:07]}  Rd3+ {[%clk 0:00:06]} 43. Kh4 {[%clk 0:00:06]}  Kxf4 {[%clk 0:00:07]} 44. Ra4+ {[%clk 0:00:05]}  Ke5 {[%clk 0:00:07]} 45. Ra7 {[%clk 0:00:04]}  g6 {[%clk 0:00:06]} 46. Re7+ {[%clk 0:00:02]}  Kf6 {[%clk 0:00:06]} 47. Re6+ {[%clk 0:00:02]}  Kf7 {[%clk 0:00:06]} 48. Rxb6 {[%clk 0:00:03]}  gxf5 {[%clk 0:00:06]} 49. gxf5 {[%clk 0:00:03]}  Rd1 {[%clk 0:00:06]} 50. Kg5 {[%clk 0:00:03]}  Rg1+ {[%clk 0:00:06]} 1/2-1/2


[Site "https://www.chess.com"]

[Event "Titled Tuesday Blitz April 4 Early 2023"]
[White "Gold_Ocean"]
[Black "Tifferet, Shaked"]
[BlackFideId "2811529"]
[WhiteElo "2654"]
[BlackElo "2142"]
[Result "0-1"]
[Round "04"]
[TimeControl "180+2"]
[Date "2023.04.04"]
[WhiteClock "0:00:06"]
[BlackClock "0:00:13"]

1. d4 {[%clk 0:03:00]}  d5 {[%clk 0:02:56]} 2. Nf3 {[%clk 0:03:00]}  Nf6 {[%clk 0:02:54]} 3. Bf4 {[%clk 0:03:01]}  c6 {[%clk 0:02:52]} 4. g3 {[%clk 0:02:41]}  g6 {[%clk 0:02:50]} 5. Bg2 {[%clk 0:02:38]}  Bg7 {[%clk 0:02:49]} 6. O-O {[%clk 0:02:29]}  O-O {[%clk 0:02:49]} 7. c4 {[%clk 0:02:30]}  dxc4 {[%clk 0:02:48]} 8. a4 {[%clk 0:02:29]}  a5 {[%clk 0:02:44]} 9. Na3 {[%clk 0:02:28]}  Be6 {[%clk 0:02:40]} 10. Ng5 {[%clk 0:02:28]}  Nd5 {[%clk 0:02:34]} 11. Nxe6 {[%clk 0:02:24]}  fxe6 {[%clk 0:02:35]} 12. Be5 {[%clk 0:02:16]}  Bxe5 {[%clk 0:02:29]} 13. dxe5 {[%clk 0:02:17]}  Qb6 {[%clk 0:02:26]} 14. Nxc4 {[%clk 0:02:14]}  Qb4 {[%clk 0:02:24]} 15. Qd3 {[%clk 0:02:09]}  Na6 {[%clk 0:02:18]} 16. e4 {[%clk 0:02:05]}  Nc5 {[%clk 0:02:13]} 17. Qe2 {[%clk 0:02:05]}  Nb6 {[%clk 0:02:12]} 18. Nxb6 {[%clk 0:01:51]}  Qxb6 {[%clk 0:02:13]} 19. Qe3 {[%clk 0:01:50]}  Nd7 {[%clk 0:02:04]} 20. Qc3 {[%clk 0:01:50]}  Qc5 {[%clk 0:02:03]} 21. Qb3 {[%clk 0:01:43]}  Qxe5 {[%clk 0:01:55]} 22. Qxb7 {[%clk 0:01:39]}  Nc5 {[%clk 0:01:49]} 23. Qxc6 {[%clk 0:01:39]}  Rab8 {[%clk 0:01:32]} 24. Rac1 {[%clk 0:01:26]}  Rfc8 {[%clk 0:00:56]} 25. Rxc5 {[%clk 0:01:25]}  Qxc5 {[%clk 0:00:57]} 26. Qxe6+ {[%clk 0:01:25]}  Kg7 {[%clk 0:00:57]} 27. b3 {[%clk 0:01:19]}  Rb6 {[%clk 0:00:54]} 28. Qg4 {[%clk 0:01:15]}  Rxb3 {[%clk 0:00:50]} 29. h4 {[%clk 0:01:15]}  Rf8 {[%clk 0:00:36]} 30. e5 {[%clk 0:00:31]}  Rb2 {[%clk 0:00:21]} 31. Qe4 {[%clk 0:00:19]}  Rfxf2 {[%clk 0:00:17]} 32. Rxf2 {[%clk 0:00:19]}  Qxf2+ {[%clk 0:00:17]} 33. Kh2 {[%clk 0:00:20]}  Re2 {[%clk 0:00:13]} 34. Qd5 {[%clk 0:00:11]}  Re3 {[%clk 0:00:10]} 35. Qd1 {[%clk 0:00:06]}  Qxg3+ {[%clk 0:00:10]} 36. Kg1 {[%clk 0:00:07]}  Re1+ {[%clk 0:00:10]} 37. Qxe1 {[%clk 0:00:06]}  Qxe1+ {[%clk 0:00:11]} 38. Kh2 {[%clk 0:00:07]}  Qxe5+ {[%clk 0:00:12]} 39. Kh3 {[%clk 0:00:06]}  Qd4 {[%clk 0:00:13]} 0-1


[Site "https://www.chess.com"]

[Event "Titled Tuesday Blitz April 4 Early 2023"]
[White "Przybylski, Wojciech"]
[Black "Sokolovsky, Yahli"]
[WhiteFideId "1117599"]
[BlackFideId "2820242"]
[WhiteElo "2222"]
[BlackElo "2316"]
[Result "1/2-1/2"]
[Round "04"]
[TimeControl "180+2"]
[Date "2023.04.04"]
[WhiteClock "0:00:03"]
[BlackClock "0:00:06"]

1. e4 {[%clk 0:03:00]}  d6 {[%clk 0:02:51]} 2. d4 {[%clk 0:03:00]}  g6 {[%clk 0:02:51]} 3. Nc3 {[%clk 0:03:00]}  Bg7 {[%clk 0:02:52]} 4. Nf3 {[%clk 0:03:01]}  a6 {[%clk 0:02:52]} 5. a4 {[%clk 0:02:59]}  b6 {[%clk 0:02:53]} 6. Be2 {[%clk 0:02:59]}  Bb7 {[%clk 0:02:54]} 7. O-O {[%clk 0:03:00]}  Nf6 {[%clk 0:02:54]} 8. e5 {[%clk 0:02:56]}  Nd5 {[%clk 0:02:50]} 9. Nxd5 {[%clk 0:02:54]}  Bxd5 {[%clk 0:02:51]} 10. c4 {[%clk 0:02:54]}  Bb7 {[%clk 0:02:50]} 11. a5 {[%clk 0:02:47]}  dxe5 {[%clk 0:02:37]} 12. Nxe5 {[%clk 0:02:36]}  Nd7 {[%clk 0:02:29]} 13. Bf3 {[%clk 0:02:25]}  Bxf3 {[%clk 0:02:22]} 14. Qxf3 {[%clk 0:02:24]}  Nxe5 {[%clk 0:02:09]} 15. dxe5 {[%clk 0:02:22]}  O-O {[%clk 0:02:10]} 16. e6 {[%clk 0:02:08]}  fxe6 {[%clk 0:02:05]} 17. Qe2 {[%clk 0:02:06]}  Qd6 {[%clk 0:02:04]} 18. Rd1 {[%clk 0:02:00]}  Bd4 {[%clk 0:01:57]} 19. Be3 {[%clk 0:01:55]}  e5 {[%clk 0:01:57]} 20. axb6 {[%clk 0:01:37]}  cxb6 {[%clk 0:01:54]} 21. Qg4 {[%clk 0:01:30]}  Rfd8 {[%clk 0:01:29]} 22. h4 {[%clk 0:01:13]}  a5 {[%clk 0:01:22]} 23. h5 {[%clk 0:01:08]}  Qf6 {[%clk 0:01:21]} 24. hxg6 {[%clk 0:00:56]}  hxg6 {[%clk 0:01:21]} 25. Rd3 {[%clk 0:00:29]}  Bxb2 {[%clk 0:01:18]} 26. Rad1 {[%clk 0:00:28]}  Rxd3 {[%clk 0:01:09]} 27. Rxd3 {[%clk 0:00:29]}  a4 {[%clk 0:01:09]} 28. Qe4 {[%clk 0:00:22]}  Rf8 {[%clk 0:01:10]} 29. c5 {[%clk 0:00:19]}  bxc5 {[%clk 0:00:57]} 30. Qxa4 {[%clk 0:00:17]}  Bd4 {[%clk 0:00:56]} 31. Qc2 {[%clk 0:00:11]}  Kg7 {[%clk 0:00:45]} 32. Bxd4 {[%clk 0:00:06]}  cxd4 {[%clk 0:00:42]} 33. Rf3 {[%clk 0:00:06]}  Qe6 {[%clk 0:00:38]} 34. Rg3 {[%clk 0:00:04]}  Rd8 {[%clk 0:00:32]} 35. Qe4 {[%clk 0:00:02]}  Rf8 {[%clk 0:00:25]} 36. Rd3 {[%clk 0:00:01]}  Qf5 {[%clk 0:00:25]} 37. Qe2 {[%clk 0:00:01]}  Rb8 {[%clk 0:00:23]} 38. Rh3 {[%clk 0:00:01]}  Rb1+ {[%clk 0:00:21]} 39. Kh2 {[%clk 0:00:02]}  Qf4+ {[%clk 0:00:20]} 40. Rg3 {[%clk 0:00:02]}  Rb3 {[%clk 0:00:17]} 41. Qc2 {[%clk 0:00:02]}  Rxg3 {[%clk 0:00:17]} 42. fxg3 {[%clk 0:00:03]}  Qh6+ {[%clk 0:00:17]} 43. Kg1 {[%clk 0:00:03]}  Qe3+ {[%clk 0:00:18]} 44. Kh2 {[%clk 0:00:04]}  d3 {[%clk 0:00:19]} 45. Qc7 {[%clk 0:00:03]}  Kf7 {[%clk 0:00:13]} 46. Qc4+ {[%clk 0:00:03]}  Kf6 {[%clk 0:00:14]} 47. Qc6+ {[%clk 0:00:01]}  e6 {[%clk 0:00:14]} 48. Qd7 {[%clk 0:00:02]}  Qd4 {[%clk 0:00:13]} 49. Qe8 {[%clk 0:00:02]}  e4 {[%clk 0:00:08]} 50. Qf8+ {[%clk 0:00:02]}  Ke5 {[%clk 0:00:08]} 51. Qg7+ {[%clk 0:00:02]}  Kd5 {[%clk 0:00:08]} 52. Qd7+ {[%clk 0:00:02]}  Kc4 {[%clk 0:00:08]} 53. Qa4+ {[%clk 0:00:02]}  Kc5 {[%clk 0:00:08]} 54. Qa7+ {[%clk 0:00:02]}  Kd5 {[%clk 0:00:08]} 55. Qd7+ {[%clk 0:00:03]}  Kc4 {[%clk 0:00:09]} 56. Qa4+ {[%clk 0:00:02]}  Kc3 {[%clk 0:00:10]} 57. Qa1+ {[%clk 0:00:03]}  Kc4 {[%clk 0:00:06]} 58. Qa4+ {[%clk 0:00:03]} 1/2-1/2


[Site "https://www.chess.com"]

[Event "Titled Tuesday Blitz April 4 Early 2023"]
[White "Nguyen Hong Nhung"]
[Black "Vaibhav Jayant Raut"]
[WhiteFideId "12412201"]
[BlackFideId "5089034"]
[WhiteElo "1968"]
[BlackElo "2156"]
[Result "0-1"]
[Round "04"]
[TimeControl "180+2"]
[Date "2023.04.04"]
[WhiteClock "0:00:16"]
[BlackClock "0:00:04"]

1. e4 {[%clk 0:03:00]}  c5 {[%clk 0:02:54]} 2. Nc3 {[%clk 0:03:00]}  Nc6 {[%clk 0:02:54]} 3. Bb5 {[%clk 0:03:00]}  Nd4 {[%clk 0:02:53]} 4. Bc4 {[%clk 0:03:00]}  a6 {[%clk 0:02:49]} 5. a4 {[%clk 0:03:00]}  e6 {[%clk 0:02:50]} 6. Nge2 {[%clk 0:02:57]}  Nf6 {[%clk 0:02:49]} 7. O-O {[%clk 0:02:57]}  d5 {[%clk 0:02:47]} 8. exd5 {[%clk 0:02:58]}  exd5 {[%clk 0:02:48]} 9. Ba2 {[%clk 0:02:59]}  Be7 {[%clk 0:02:41]} 10. d3 {[%clk 0:02:57]}  O-O {[%clk 0:02:35]} 11. Nxd4 {[%clk 0:02:55]}  cxd4 {[%clk 0:02:36]} 12. Ne2 {[%clk 0:02:55]}  Qb6 {[%clk 0:02:35]} 13. Ng3 {[%clk 0:02:41]}  Bg4 {[%clk 0:02:32]} 14. Qd2 {[%clk 0:02:37]}  Rac8 {[%clk 0:02:30]} 15. Bb3 {[%clk 0:02:36]}  Be6 {[%clk 0:02:20]} 16. Qf4 {[%clk 0:02:23]}  Qc7 {[%clk 0:01:27]} 17. Qxd4 {[%clk 0:02:10]}  Ng4 {[%clk 0:01:18]} 18. Bf4 {[%clk 0:01:57]}  Qd7 {[%clk 0:01:08]} 19. Nh5 {[%clk 0:01:48]}  Nf6 {[%clk 0:01:08]} 20. Nxf6+ {[%clk 0:01:45]}  Bxf6 {[%clk 0:01:09]} 21. Be5 {[%clk 0:01:46]}  Bxe5 {[%clk 0:01:09]} 22. Qxe5 {[%clk 0:01:46]}  d4 {[%clk 0:01:10]} 23. Bxe6 {[%clk 0:01:39]}  fxe6 {[%clk 0:01:10]} 24. c3 {[%clk 0:01:26]}  dxc3 {[%clk 0:01:06]} 25. bxc3 {[%clk 0:01:27]}  Qxd3 {[%clk 0:01:03]} 26. Qxe6+ {[%clk 0:01:26]}  Kh8 {[%clk 0:01:03]} 27. Rab1 {[%clk 0:01:22]}  b5 {[%clk 0:00:42]} 28. Qxa6 {[%clk 0:01:19]}  Qxc3 {[%clk 0:00:27]} 29. axb5 {[%clk 0:01:14]}  Ra8 {[%clk 0:00:23]} 30. Qd6 {[%clk 0:01:12]}  Rad8 {[%clk 0:00:16]} 31. Qc6 {[%clk 0:01:06]}  Qd4 {[%clk 0:00:13]} 32. h3 {[%clk 0:01:03]}  Rf6 {[%clk 0:00:11]} 33. Qc7 {[%clk 0:00:59]}  Rb6 {[%clk 0:00:09]} 34. Rfe1 {[%clk 0:00:47]}  Rdb8 {[%clk 0:00:04]} 35. Red1 {[%clk 0:00:41]}  Qf6 {[%clk 0:00:04]} 36. Rd5 {[%clk 0:00:37]}  h6 {[%clk 0:00:04]} 37. Qc4 {[%clk 0:00:31]}  Rf8 {[%clk 0:00:03]} 38. Rd2 {[%clk 0:00:31]}  Rfb8 {[%clk 0:00:03]} 39. Rdb2 {[%clk 0:00:22]}  Qf5 {[%clk 0:00:03]} 40. Rb3 {[%clk 0:00:22]}  Qg6 {[%clk 0:00:03]} 41. Rg3 {[%clk 0:00:22]}  Qxb1+ {[%clk 0:00:03]} 42. Kh2 {[%clk 0:00:21]}  Qxb5 {[%clk 0:00:04]} 43. Qc3 {[%clk 0:00:20]}  Qd7 {[%clk 0:00:04]} 44. Qc4 {[%clk 0:00:19]}  Rc6 {[%clk 0:00:02]} 45. Qh4 {[%clk 0:00:19]}  Qc7 {[%clk 0:00:02]} 46. f4 {[%clk 0:00:18]}  Rf8 {[%clk 0:00:02]} 47. Rf3 {[%clk 0:00:18]}  Rcf6 {[%clk 0:00:02]} 48. Qg4 {[%clk 0:00:16]}  Rxf4 {[%clk 0:00:02]} 49. Rxf4 {[%clk 0:00:17]}  Qxf4+ {[%clk 0:00:03]} 50. Qxf4 {[%clk 0:00:16]}  Rxf4 {[%clk 0:00:04]} 0-1


[Site "https://www.chess.com"]